Cogmind - Beta 16 @@@ ROGUE MODE // 2025.10.29 @ 19:02:38 Player: Beans Result: Destroyed by as-69909 with Assembled Rifle Performance ------------- Evolutions (0) 0 Regions Visited (3) 600 Robots Destroyed (7) 35 Value Destroyed (134) 134 Prototype IDs (0) 0 Alien Tech Used (0) 0 Bonus (0) 0 TOTAL SCORE: 769 Bonus ------- None Cogmind --------- Core Integrity 0/250 Matter 277/300 Energy 100/100 System Corruption 2% Temperature Cool (0) Movement Core (100) Ox1 Location -10/Exiles Parts ------- > --- POWER (1) -------- (None) > --- PROPULSION (2) --- (None) > --- UTILITY (2) ------ Small Storage Unit > --- WEAPON (2) ------- (None) > --- INVENTORY (8) ---- Light Ion Engine Light Nuclear Core Flight Unit Flight Unit Flight Unit Signal Interpreter Light Armor Plating Light Assault Rifle Peak State ------------ > --- POWER ------------ Ion Engine > --- PROPULSION ------- Aluminum Leg Aluminum Leg > --- UTILITY ---------- Small Storage Unit Power Shielding > --- WEAPON ----------- Rocket Launcher > --- INVENTORY -------- Light Ion Engine Light Nuclear Core Flight Unit Flight Unit Flight Unit Signal Interpreter Light Armor Plating Light Assault Rifle [Rating: 8] Favorites ----------- Power Ion Engine Engine Ion Engine Propulsion Aluminum Leg Leg Aluminum Leg Utility Small Storage Unit Storage Small Storage Unit Protection Power Shielding Weapon Rocket Launcher Launcher Rocket Launcher Build | -11 -10 -10 -10 ------- Run | Yrd Mat Min Exi Slots Evolved . | . . . . Power . | . . . . Propulsion . | . . . . Utility . | . . . . Weapon . | . . . . Parts Attached 6 | 4 1 1 . Power 1 | 1 . . . Engine 1 | 1 . . . Core . | . . . . Reactor . | . . . . Propulsion 2 | 2 . . . Treads . | . . . . Leg 2 | 2 . . . Wheel . | . . . . Hover . | . . . . Flight . | . . . . Utility 2 | 1 1 . . Device . | . . . . Storage 1 | 1 . . . Processor . | . . . . Hackware . | . . . . Protection 1 | . 1 . . Artifact . | . . . . Weapon 1 | . . 1 . Energy Gun . | . . . . Energy Cannon . | . . . . Ballistic Gun . | . . . . Ballistic Cannon . | . . . . Launcher 1 | . . 1 . Special Weapon . | . . . . Impact Weapon . | . . . . Slashing Weapon . | . . . . Piercing Weapon . | . . . . Special Melee Weapon . | . . . . Unidentified Prototypes . | . . . . Parts Lost 5 | . . . 5 Power 1 | . . . 1 Propulsion 2 | . . . 2 Utility 1 | . . . 1 Weapon 1 | . . . 1 Highest Loss Streak 5 | . . . 5 To Critical Strikes 1 | . . . 1 Average Backups 4 | . 1 5 8 Power 1 | . 1 1 2 Propulsion 1 | . . 1 3 Utility 1 | . . 1 2 Weapon . | . . . 1 Tool/Special . | . . . . Unused Backups 9 | . . 1 8 Power 3 | . . 1 2 Propulsion 3 | . . . 3 Utility 2 | . . . 2 Weapon 1 | . . . 1 Tool/Special . | . . . . Average Slot Usage (%) 79 | . 65 81 81 Engine 14 | . 14 14 14 Leg 27 | . 28 28 25 Storage 14 | . 14 14 14 Protection 13 | . 8 14 14 Launcher 9 | . . 10 12 Peak Build Rating 8 | 4 5 8 8 Average Rating 6 | 3 4 6 7 On Entrance 4 | . 4 5 8 Avg Prop Armor Cover (%) . | . . . . Naked Turns . | . . . . Heaviest Build 15 | 10 11 15 15 Greatest Support 20 | 20 20 20 20 Greatest Overweight (x) 3 | 3 . . 1 Average Overweight (x) . | . . . . Largest Inventory Capacity 8 | 8 8 8 8 Average Capacity 7 | 7 8 8 8 Most Carried 8 | 1 1 8 8 Average Carried 5 | . 1 5 8 Final Capacity 8 | 8 8 8 8 Final Carried 8 | 1 1 8 8 Class Distribution -------------------- 100% | Mutant Dominant Class ---------------- Mutant | -10/Materials Mutant | -10/Mines Mutant | -10/Exiles Resources | -11 -10 -10 -10 ----------- Run | Yrd Mat Min Exi Matter Collected 283 | 196 9 78 . Remotely . | . . . . Salvage Created 145 | . . 133 12 Parts 13 | . . 13 . Haulers Intercepted . | . . . . Recyclers Shooed . | . . . . Parts Field Recycled . | . . . . Retrieved Matter . | . . . . Parts Self-Destructed . | . . . . Prevented . | . . . . Parts Restored . | . . . . Kills | -11 -10 -10 -10 ------- Run | Yrd Mat Min Exi Combat Hostiles Destroyed 10 | . . 5 5 AOE 10 | . . 5 5 Classes Destroyed 5 | . . 4 1 Tunneler 1 | . . 1 . Recycler 1 | . . 1 . Swarmer 3 | . . 3 . Grunt 2 | . . 2 . Assembled 5 | . . . 5 Best Kill Streak 5 | . . 4 5 Combat Bots Only 5 | . . 3 5 Max Kills in Single Turn 3 | . . 3 2 Gunslinging . | . . . . Exploded 3 | . . 3 2 Melee . | . . . . Uniques/NPCs Destroyed . | . . . . Combat | -11 -10 -10 -10 -------- Run | Yrd Mat Min Exi Hostile Shots Fired 61 | . 21 4 36 Missed 13 | . 3 2 8 Hits 48 | . 18 2 28 Projectile 48 | . 18 2 28 Critical Strikes 4 | . . 1 3 Actively Blocked 1 | . . . 1 Damage Taken 649 | . 142 55 452 Core 259 | . 63 25 171 Absorbed by Shields . | . . . . Redirected to Shielding 23 | . 2 . 21 Core Remaining (%) 100 | 100 . . . Volleys Fired 7 | . . 4 3 Largest 1 | . . 1 1 Hottest 33 | . . 33 33 Shots Fired 8 | . . 4 4 Gun . | . . . . Cannon . | . . . . Launcher 8 | . . 4 4 Special . | . . . . Kinetic . | . . . . Thermal . | . . . . Explosive 8 | . . 4 4 Electromagnetic . | . . . . Robot Hit Streak 3 | . . 1 3 Robot Miss Streak 1 | . . . 1 Penetration Max . | . . . . Secondary Targets . | . . . . Shots Hit Robots 4 | . . 1 3 Core Hits 16 | . . 11 5 Critical Kills . | . . . . Critical Parts Destroyed . | . . . . Critical Strikes . | . . . . Melee Attacks . | . . . . Impact . | . . . . Slashing . | . . . . Piercing . | . . . . Sneak Attacks . | . . . . Combat Hostiles . | . . . . Follow-up Attacks . | . . . . Damage Inflicted 552 | . 11 245 296 Guns . | . . . . Cannons . | . . . . Explosions 540 | . . 244 296 Melee . | . . . . Ramming 12 | . 11 1 . Kinetic . | . . . . Thermal . | . . . . Explosive 540 | . . 244 296 Electromagnetic . | . . . . Impact . | . . . . Slashing . | . . . . Piercing . | . . . . Highest Corruption 2 | . 2 2 2 Average Corruption 2 | . 2 2 2 Corruption Purged . | . . . . Corruption Blocked . | . . . . Effects 11 | . . 7 4 Message Errors 2 | . . 2 . Matter Fused 1 | . . . 1 Energy Discharges 3 | . . 3 . Parts Fused 1 | . . 1 . Data Loss (minor) 2 | . . . 2 Data Loss (major) 1 | . . 1 . Misfires 1 | . . . 1 Overload Shots . | . . . . Overflow Damage 51 | . . . 51 Projectiles . | . . . . Explosions 51 | . . . 51 Melee . | . . . . Knockbacks . | . . . . Impact . | . . . . Kinetic . | . . . . Secondary . | . . . . Self-Inflicted Damage 97 | . . 32 65 Shots 3 | . . 1 2 Rammed . | . . . . Targets Rammed 7 | . 5 1 1 Kicked 7 | . 5 1 1 Crushed . | . . . . Highest Temperature 24 | . . 23 24 Average Temperature 14 | . . 14 14 Received Heat Transfer 27 | . . 27 . Siege Activations . | . . . . Martial Activations . | . . . . Shielding Activations . | . . . . Robots Disrupted . | . . . . Combat Hostiles . | . . . . Robots Corrupted . | . . . . Combat Hostiles . | . . . . Parts Fried . | . . . . Impact Corruptions . | . . . . Robots Melted . | . . . . Combat Hostiles . | . . . . Parts Melted . | . . . . Heat Transferred . | . . . . Parts Sabotaged . | . . . . Parts Stolen . | . . . . Parts Stripped . | . . . . Power Chain Reactions . | . . . . Alert | -11 -10 -10 -10 ------- Run | Yrd Mat Min Exi Maximum Alert Level . | . . . . Low Security (%) 100 | 100 100 100 . Level 1 . | . . . . Level 2 . | . . . . Level 3 . | . . . . Level 4 . | . . . . Level 5 . | . . . . High Security . | . . . . Max Security . | . . . . Peak Influence 116 | . . 116 . Initial . | . . . . Average 34 | . . 45 . Influence Increases 196 | . . 196 . Destroy 0b10 Robot/C 100 | . . 100 . Destroy 0b10 Robot/NC 10 | . . 10 . Destroy Leader 20 | . . 20 . Disable Machine 15 | . . 15 . Destroy Structure 21 | . . 21 . Lose Combat Pursuer 30 | . . 30 . Influence Decreases 196 | . . 138 58 Entered New Map 58 | . . . 58 Time Decay 138 | . . 138 . Squads Dispatched . | . . . . Investigation . | . . . . Extermination . | . . . . Reinforcement . | . . . . Assault . | . . . . Garrison . | . . . . Intercept . | . . . . Searches Triggered . | . . . . Construction Impeded . | . . . . Haulers Reinforced . | . . . . Active Scanning Responses . | . . . . Cargo Convoy Interrupts . | . . . . Stealth | -11 -10 -10 -10 --------- Run | Yrd Mat Min Exi Distress Signals 1 | . 1 . . Communications Jammed . | . . . . Distress Signals . | . . . . Times Spotted 19 | . 6 5 8 Peak Tracking Total 9 | . 6 5 9 Tactical Retreats 1 | . . 1 . Traps | -11 -10 -10 -10 ------- Run | Yrd Mat Min Exi Traps Triggered 1 | . 1 . . Indirectly . | . . . . Trap Hack Attempts . | . . . . Triggered . | . . . . Disarmed . | . . . . Reprogrammed . | . . . . Reused . | . . . . Traps Extracted . | . . . . Installed . | . . . . Triggered . | . . . . Machines | -11 -10 -10 -10 ---------- Run | Yrd Mat Min Exi Machines Disabled 7 | . . 1 6 Max in Single Turn 4 | . . 1 4 Machines Repaired . | . . . . Machines Dismantled . | . . . . Machines Sabotaged . | . . . . Overloaded Fab Kills . | . . . . Hacking | -11 -10 -10 -10 --------- Run | Yrd Mat Min Exi Machines Accessed . | . . . . Terminals . | . . . . Fabricators . | . . . . Repair Stations . | . . . . Recycling Units . | . . . . Scanalyzers . | . . . . Garrison Access . | . . . . Total Hacks . | . . . . Successful . | . . . . Failed . | . . . . Catastrophic . | . . . . Database Lockouts . | . . . . Manual . | . . . . Terminals . | . . . . Fabricators . | . . . . Repair Stations . | . . . . Recycling Units . | . . . . Scanalyzers . | . . . . Garrison Access . | . . . . Terminal Hacks . | . . . . Fabricator Hacks . | . . . . Repair Station Hacks . | . . . . Recycling Unit Hacks . | . . . . Scanalyzer . | . . . . Garrison Access Hacks . | . . . . Unauthorized Hacks . | . . . . Terminals . | . . . . Fabricators . | . . . . Repair Stations . | . . . . Recycling Units . | . . . . Scanalyzers . | . . . . Garrison Access . | . . . . Data Cores Recovered . | . . . . Used . | . . . . Hacking Detections . | . . . . Full Trace Events . | . . . . Feedback Events . | . . . . Feedback Blocked . | . . . . Robot Schematics Acquired . | . . . . Robots Built . | . . . . Authchips . | . . . . Time . | . . . . Total Robot Build Rating . | . . . . Part Schematics Acquired . | . . . . Parts Built . | . . . . Authchips . | . . . . Time . | . . . . Total Part Build Rating . | . . . . Part Studies Acquired . | . . . . Parts Repaired . | . . . . Time . | . . . . Parts Recycled . | . . . . Recycled Matter . | . . . . Retrieved Matter . | . . . . Retrieved Components . | . . . . Parts Scanalyzed . | . . . . Part Schematics Acquired . | . . . . Parts Damaged . | . . . . Bothacking | -11 -10 -10 -10 ------------ Run | Yrd Mat Min Exi Used RIF Installer . | . . . . Robots Hacked . | . . . . Non-combat . | . . . . Combat . | . . . . Robot Hacks Applied . | . . . . Relay Couplers Released . | . . . . Fabnet Peak Effective % . | . . . . Robots Rewired . | . . . . Allies Hacked . | . . . . Hacks Repelled . | . . . . Allies | -11 -10 -10 -10 -------- Run | Yrd Mat Min Exi Total Allies . | . . . . Largest Group . | . . . . Highest-Rated Group . | . . . . Highest-Rated Ally . | . . . . Total Orders . | . . . . Ally Attacks . | . . . . Total Damage . | . . . . Kills . | . . . . Allies Corrupted . | . . . . Allies Melted . | . . . . Intel | -11 -10 -10 -10 ------- Run | Yrd Mat Min Exi Active Infowar (turns) . | . . . . Robot Analysis Total . | . . . . Derelict Logs Recovered 1 | . . 1 . Drone Launches . | . . . . Drone Recoveries . | . . . . Exploration | -11 -10 -10 -10 ------------- Run | Yrd Mat Min Exi Turns Passed 642 | 57 66 403 116 Spaces Moved 492 | 38 49 316 89 Core 14 | 11 . . 3 Treads . | . . . . Legs 478 | 27 49 316 86 Wheels . | . . . . Hover . | . . . . Flight . | . . . . Fastest Speed 50 | 50 120 120 100 Average Speed 121 | 133 120 120 121 Slowest Speed 200 | 200 120 120 190 Overloaded Moves . | . . . . Propulsion Burnouts . | . . . . Robots Hopped . | . . . . Potential Cave-ins . | . . . . Cave-ins Triggered . | . . . . Exploration Rate (%) 26 | 3 16 58 30 Regions Visited 3 Branch Regions 2 Pre-discovered Areas . | . . . . Known Exits Taken . | . . . . Unknown Exits Taken 3 | 1 1 1 . Scrap Searched 2 | . . 2 . Spaces Dug . | . . . . Terrain Destroyed 31 | . . 24 7 Melee . | . . . . Projectile . | . . . . AOE 31 | . . 24 7 Terrain Rammed . | . . . . Walls Destroyed . | . . . . Machines Disabled . | . . . . Actions | -11 -10 -10 -10 --------- Run | Yrd Mat Min Exi Total 524 | 42 54 335 93 Wait 5 | . . 5 . Move 489 | 37 48 315 89 Hop . | . . . . Pick Up 9 | 1 . 8 . Fast Attach 6 | 4 1 1 . Attach . | . . . . Detach . | . . . . Swap . | . . . . Drop 1 | . . 1 . Fire 7 | . . 4 3 Melee . | . . . . Ram . | . . . . Kick 7 | . 5 1 1 Crush . | . . . . Escape Stasis . | . . . . Rewire . | . . . . Trap . | . . . . Miscellaneous . | . . . . Route ------- -11/Scrapyard -10/Materials -10/Mines (discovered 2 exits: [*Mat] / [*Exi]) -10/Exiles (discovered 1 exit: [*Min]) History --------- Turn | Location | Event 22 | -11/Scrapyard | Discovered new exit (range 15) 58 | -11/Scrapyard | Entered Materials 114 | -10/Materials | Discovered new exit (range 8) 124 | -10/Materials | Entered Mines 161 | -10/Mines | Discovered new exit (range 5) 209 | -10/Mines | Received a Rocket Launcher from a helpful Derelict 309 | -10/Mines | Build established: Mutant 503 | -10/Mines | Learned Materials machine intel 515 | -10/Mines | Discovered new exit (range 9) 527 | -10/Mines | Entered Exiles 545 | -10/Exiles | Discovered new exit (range 15) 572 | -10/Exiles | Met 8R-AWN 593 | -10/Exiles | Met EX-HEX 617 | -10/Exiles | Attacked by the Exiles 634 | -10/Exiles | Core integrity fell below 50% 642 | -10/Exiles | Core integrity fell below 20% 643 | -10/Exiles | Destroyed by as-69909 with Assembled Rifle Last Messages --------------- 00630_ Machine disabled. 00630_ Aluminum Leg destroyed. 00630_ Destroyed Aluminum Leg. 00630_ as-34846 destroyed. 00630_ Destroyed Asb. Hover Unit. 00630_ Machine disabled. 00633_ System corrupted: Component data lost. 00633_ Penetrated by HV Slug. 00634_ as-70728 destroyed. 00635_ Penetrated by HV Slug. 00637_ Critical hit (Destroy). 00637_ Rocket Launcher destroyed. 00637_ Penetrated by HV Slug. [Achievement: That Tickles] 00639_ Aluminum Leg destroyed. 00640_ Penetrated by HV Slug. 00640_ Power Shielding destroyed. 00640_ Ion Engine destroyed. 00640_ HV Slug penetrates Machine. 00642_ Penetrated by HV Slug. Map ----- +----------------------------------------------------+ | ?????????????????????????????????????????????????? | | ?????????????????????????????????????????????????? | | ?????????????????????????????????????????????????? | | ?????????????????????????????????????????????????? | | ?????????????????????????????????????????????????? | | ?????????????????????????????????????????????????? | | ?????????????????????????????????????????????????? | | ????????????????? ?????????????????????????????? | | ??????????????? ?????????????????????????????? | | ???????????????" ?????????????????????????????? | | ???????????????" ?????????????????????????????? | | ??????????????#" ?????????????????????????????? | | ?????????????##" ?????????????????????????????? | | ????????????##"" ?????????????????????????????? | | ???????????##"" #????????????????????????????? | | ????????""""""" ##???????????????????????????? | | ????????"" " "" ##???#############??????????? | | ???????""" " #####"""" "" " #??????????? | | ?????" " " "" ##?????????? | | ????? "" ??????????? | | ???? " "#??????????? | | ???? a"#??????????? | | ???? "##?????????# | | ???? "###???????# | | ???? """"" % """#??????## | | ????? ######"" @ "#????### | | ????????????????#### " ##???# | | ???????????????????### ##?## | | ?????????????????????#"""" g ### | | ?????????????????????#"" | | ????????????????????#"""" a | | ??????????????????""" "" | | ?????????????????"" #"""# | | ???????????????? a ###### | | ???????????????? ##????? | | ????????????????? ##?????? | | ????????????????? "" % ""#??????? | | ????????????????? ##""" " " % "##??????? | | ????????????????????####""" " ##"""""""##???????? | | ???????????????????????###""""#?#########????????? | | ?????????????????????????#####???????????????????? | | ?????????????????????????????????????????????????? | | ?????????????????????????????????????????????????? | | ?????????????????????????????????????????????????? | | ?????????????????????????????????????????????????? | | ?????????????????????????????????????????????????? | | ?????????????????????????????????????????????????? | | ?????????????????????????????????????????????????? | | ?????????????????????????????????????????????????? | | ?????????????????????????????????????????????????? | +----------------------------------------------------+ Best States ------------- Heat Dissipation 25 Energy Generation 10 Energy Capacity 250 Matter Stores 300 Matter Capacity 300 Sight Range 16 Terrain Scan Density 10 Power Shielding 33 Evasion (%) 55 Item Schematics ----------------- None Robot Schematics ------------------ None Fabricated ------------ Nothing Repaired ---------- Nothing Studied --------- None Alien Tech Used ----------------- None Achievements -------------- Dramatic Entrance That Tickles Challenges ------------ None Game ------ Seed MatterServoRegenerator Manual? 0 Play Time 00:09:36 Cumulative 91.0 hours Start 2025.10.29 @ 18:54:32 End 2025.10.29 @ 19:02:38 Sessions 1 Manual Loads 0 Difficulty Rogue Special Mode None Game No. 87 Rogue 87 Adventurer 0 Explorer 0 Win Type - Total 0 Types 0/0/0/0/0/0/0/0/0/0 Lore% 16 Gallery% 33 Achievement% 23 Wizard Run 0 Options --------- Layout 1 ASCII 1 Keyboard 1 Movement Vi Keybinds 1 Fullscreen 1 Font 32/SmallcapsGlow Map View 50x35 Zoom Use 0% Tactical HUD 1 Map Filters NONE Filters NONE Steam 1 RUN: 4a398528-1b79-4f9a-837d-03b9b44fe367